[Event "Titled Tuesday Blitz August 3 2021"]
[White "Praggnanandhaa R"]
[Black "Daulyte-Cornette, Deimante"]
[WhiteFideId "25059530"]
[BlackFideId "12802859"]
[WhiteElo "2555"]
[BlackElo "2285"]
[Result "1-0"]
[Round "01"]
[TimeControl "180+1"]
[Date "2021.08.03"]
[WhiteClock "0:01:57"]
[BlackClock "0:00:01"]

1. b3 {[%clk 0:03:00]}  g6 {[%clk 0:02:56]} 2. Bb2 {[%clk 0:03:01]}  Nf6 {[%clk 0:02:56]} 3. Nf3 {[%clk 0:03:02]}  Bg7 {[%clk 0:02:56]} 4. g3 {[%clk 0:03:03]}  d6 {[%clk 0:02:53]} 5. d4 {[%clk 0:03:02]}  c5 {[%clk 0:02:51]} 6. Bg2 {[%clk 0:03:01]}  cxd4 {[%clk 0:02:48]} 7. Nxd4 {[%clk 0:03:02]}  d5 {[%clk 0:02:47]} 8. c4 {[%clk 0:03:02]}  e5 {[%clk 0:02:45]} 9. Nf3 {[%clk 0:03:01]}  e4 {[%clk 0:02:42]} 10. Nd4 {[%clk 0:03:00]}  dxc4 {[%clk 0:02:37]} 11. O-O {[%clk 0:03:00]}  O-O {[%clk 0:02:23]} 12. bxc4 {[%clk 0:03:00]}  Na6 {[%clk 0:02:16]} 13. Nc3 {[%clk 0:02:59]}  Nc5 {[%clk 0:02:05]} 14. Ba3 {[%clk 0:02:59]}  Qa5 {[%clk 0:01:55]} 15. Ndb5 {[%clk 0:02:59]}  b6 {[%clk 0:01:19]} 16. Rc1 {[%clk 0:02:52]}  a6 {[%clk 0:01:15]} 17. Bxc5 {[%clk 0:02:50]}  bxc5 {[%clk 0:01:16]} 18. Nd6 {[%clk 0:02:51]}  Rd8 {[%clk 0:01:09]} 19. Ncxe4 {[%clk 0:02:48]}  Nxe4 {[%clk 0:01:07]} 20. Bxe4 {[%clk 0:02:49]}  Ra7 {[%clk 0:01:05]} 21. Nxc8 {[%clk 0:02:37]}  Rxd1 {[%clk 0:01:00]} 22. Rfxd1 {[%clk 0:02:38]}  Rc7 {[%clk 0:00:47]} 23. Rd8+ {[%clk 0:02:37]}  Bf8 {[%clk 0:00:47]} 24. Rb1 {[%clk 0:02:23]}  Qxa2 {[%clk 0:00:41]} 25. Rb8 {[%clk 0:02:22]}  Qxc4 {[%clk 0:00:37]} 26. Nd6 {[%clk 0:02:22]}  Qc1+ {[%clk 0:00:26]} 27. Kg2 {[%clk 0:02:21]}  c4 {[%clk 0:00:19]} 28. Rxf8+ {[%clk 0:02:21]}  Kg7 {[%clk 0:00:20]} 29. Ne8+ {[%clk 0:02:07]}  Kxf8 {[%clk 0:00:19]} 30. Nxc7+ {[%clk 0:02:08]}  Ke7 {[%clk 0:00:17]} 31. Nxa6 {[%clk 0:02:09]}  c3 {[%clk 0:00:17]} 32. Nb4 {[%clk 0:02:09]}  Qd2 {[%clk 0:00:15]} 33. Bd3 {[%clk 0:02:07]}  Kf6 {[%clk 0:00:14]} 34. Rc8 {[%clk 0:02:07]}  Kg7 {[%clk 0:00:12]} 35. Nd5 {[%clk 0:02:06]}  h5 {[%clk 0:00:09]} 36. Rxc3 {[%clk 0:02:05]}  Qb2 {[%clk 0:00:07]} 37. Rc7 {[%clk 0:02:04]}  Qe5 {[%clk 0:00:05]} 38. Bc4 {[%clk 0:02:04]}  Qe4+ {[%clk 0:00:05]} 39. f3 {[%clk 0:02:05]}  Qe5 {[%clk 0:00:04]} 40. Re7 {[%clk 0:01:58]}  Qb2 {[%clk 0:00:03]} 41. Nf4 {[%clk 0:01:58]}  Kh6 {[%clk 0:00:02]} 42. Rxf7 {[%clk 0:01:58]}  Qc3 {[%clk 0:00:02]} 43. Bd3 {[%clk 0:01:58]}  Qb3 {[%clk 0:00:01]} 44. Bxg6 {[%clk 0:01:57]} 1-0


[Site "https://www.chess.com"]

[Event "Titled Tuesday Blitz August 3 2021"]
[White "Quparadze, Giga"]
[Black "Prydun, Andriy"]
[WhiteFideId "13602250"]
[BlackFideId "14145898"]
[WhiteElo "2658"]
[BlackElo "2024"]
[Result "0-1"]
[Round "01"]
[TimeControl "180+1"]
[Date "2021.08.03"]
[WhiteClock "0:02:34"]
[BlackClock "0:00:25"]

1. e4 {[%clk 0:02:56]}  d5 {[%clk 0:02:58]} 2. exd5 {[%clk 0:02:56]}  Qxd5 {[%clk 0:02:59]} 3. Nc3 {[%clk 0:02:56]}  Qd6 {[%clk 0:02:59]} 4. d4 {[%clk 0:02:56]}  Nf6 {[%clk 0:02:59]} 5. Nf3 {[%clk 0:02:56]}  c6 {[%clk 0:02:59]} 6. Bc4 {[%clk 0:02:55]}  Bf5 {[%clk 0:02:58]} 7. Qe2 {[%clk 0:02:55]}  Nbd7 {[%clk 0:02:57]} 8. Bb3 {[%clk 0:02:55]}  e6 {[%clk 0:02:49]} 9. Bd2 {[%clk 0:02:55]}  Be7 {[%clk 0:02:48]} 10. O-O-O {[%clk 0:02:55]}  O-O {[%clk 0:02:47]} 11. Nh4 {[%clk 0:02:55]}  Bg4 {[%clk 0:02:45]} 12. f3 {[%clk 0:02:55]}  Bh5 {[%clk 0:02:45]} 13. g4 {[%clk 0:02:56]}  Bg6 {[%clk 0:02:44]} 14. Nxg6 {[%clk 0:02:56]}  hxg6 {[%clk 0:02:43]} 15. h4 {[%clk 0:02:56]}  Nd5 {[%clk 0:01:51]} 16. Ne4 {[%clk 0:02:55]}  Qc7 {[%clk 0:01:51]} 17. h5 {[%clk 0:02:56]}  Nf4 {[%clk 0:01:50]} 18. Qh2 {[%clk 0:02:54]}  g5 {[%clk 0:01:49]} 19. h6 {[%clk 0:02:54]}  g6 {[%clk 0:01:47]} 20. h7+ {[%clk 0:02:55]}  Kh8 {[%clk 0:01:47]} 21. Qh6 {[%clk 0:02:55]}  c5 {[%clk 0:00:54]} 22. Nxg5 {[%clk 0:02:54]}  Ne2+ {[%clk 0:00:52]} 23. Kb1 {[%clk 0:02:54]}  c4 {[%clk 0:00:53]} 24. Ba4 {[%clk 0:02:50]}  Nb6 {[%clk 0:00:52]} 25. Ba5 {[%clk 0:02:45]}  c3 {[%clk 0:00:50]} 26. Bb5 {[%clk 0:02:43]}  Qf4 {[%clk 0:00:35]} 27. Bxe2 {[%clk 0:02:43]}  Bxg5 {[%clk 0:00:34]} 28. Qh2 {[%clk 0:02:42]}  Qxh2 {[%clk 0:00:32]} 29. Rxh2 {[%clk 0:02:43]}  cxb2 {[%clk 0:00:32]} 30. c4 {[%clk 0:02:43]}  Rac8 {[%clk 0:00:31]} 31. c5 {[%clk 0:02:43]}  Nd5 {[%clk 0:00:31]} 32. Bb5 {[%clk 0:02:43]}  b6 {[%clk 0:00:29]} 33. Be1 {[%clk 0:02:42]}  bxc5 {[%clk 0:00:29]} 34. Rxb2 {[%clk 0:02:39]}  cxd4 {[%clk 0:00:28]} 35. Rb3 {[%clk 0:02:37]}  Nc3+ {[%clk 0:00:27]} 36. Bxc3 {[%clk 0:02:37]}  dxc3 {[%clk 0:00:28]} 37. Kc2 {[%clk 0:02:37]}  Bd2 {[%clk 0:00:27]} 38. Bd3 {[%clk 0:02:38]}  Kxh7 {[%clk 0:00:26]} 39. Rb7 {[%clk 0:02:37]}  Kg7 {[%clk 0:00:26]} 40. Rdb1 {[%clk 0:02:37]}  Rh8 {[%clk 0:00:26]} 41. Rxa7 {[%clk 0:02:35]}  Rh2 {[%clk 0:00:24]} 42. Rbb7 {[%clk 0:02:35]}  Be3+ {[%clk 0:00:24]} 43. Kb3 {[%clk 0:02:34]}  Bxa7 {[%clk 0:00:25]} 0-1


[Site "https://www.chess.com"]

[Event "Titled Tuesday Blitz August 3 2021"]
[White "Rasulov, Vugar"]
[Black "Isajevsky, Anton"]
[WhiteFideId "13402390"]
[BlackFideId "4142500"]
[WhiteElo "2553"]
[BlackElo "2510"]
[Result "1-0"]
[Round "01"]
[TimeControl "180+1"]
[Date "2021.08.03"]
[WhiteClock "0:01:40"]
[BlackClock "0:00:01"]

1. e4 {[%clk 0:03:00]}  c5 {[%clk 0:02:59]} 2. Nf3 {[%clk 0:03:00]}  d6 {[%clk 0:02:59]} 3. d4 {[%clk 0:03:00]}  cxd4 {[%clk 0:03:00]} 4. Nxd4 {[%clk 0:03:01]}  Nf6 {[%clk 0:03:01]} 5. Nc3 {[%clk 0:03:02]}  a6 {[%clk 0:03:01]} 6. Be3 {[%clk 0:03:01]}  e5 {[%clk 0:03:01]} 7. Nf3 {[%clk 0:03:01]}  Qc7 {[%clk 0:02:55]} 8. a4 {[%clk 0:03:01]}  Be7 {[%clk 0:02:48]} 9. Be2 {[%clk 0:03:01]}  O-O {[%clk 0:02:46]} 10. a5 {[%clk 0:03:01]}  Nbd7 {[%clk 0:02:44]} 11. O-O {[%clk 0:03:00]}  b5 {[%clk 0:02:44]} 12. axb6 {[%clk 0:03:00]}  Nxb6 {[%clk 0:02:45]} 13. Nd2 {[%clk 0:03:00]}  Bb7 {[%clk 0:02:40]} 14. Bd3 {[%clk 0:02:55]}  d5 {[%clk 0:02:31]} 15. Bxb6 {[%clk 0:02:50]}  Qxb6 {[%clk 0:02:30]} 16. exd5 {[%clk 0:02:50]}  Nxd5 {[%clk 0:02:29]} 17. Nc4 {[%clk 0:02:46]}  Qe6 {[%clk 0:01:31]} 18. Qh5 {[%clk 0:02:30]}  g6 {[%clk 0:01:25]} 19. Qxe5 {[%clk 0:02:28]}  Qxe5 {[%clk 0:01:25]} 20. Nxe5 {[%clk 0:02:29]}  Nxc3 {[%clk 0:01:24]} 21. bxc3 {[%clk 0:02:30]}  Rfc8 {[%clk 0:01:21]} 22. Rab1 {[%clk 0:02:24]}  Bd5 {[%clk 0:01:01]} 23. c4 {[%clk 0:02:13]}  Be6 {[%clk 0:00:36]} 24. Be4 {[%clk 0:02:13]}  Ra7 {[%clk 0:00:36]} 25. Bd5 {[%clk 0:02:03]}  Bxd5 {[%clk 0:00:28]} 26. cxd5 {[%clk 0:02:04]}  Rxc2 {[%clk 0:00:29]} 27. Rfc1 {[%clk 0:01:48]}  Rxc1+ {[%clk 0:00:16]} 28. Rxc1 {[%clk 0:01:48]}  Bf6 {[%clk 0:00:15]} 29. Nc6 {[%clk 0:01:40]}  Rd7 {[%clk 0:00:11]} 30. Rd1 {[%clk 0:01:41]}  Bc3 {[%clk 0:00:02]} 31. Rd3 {[%clk 0:01:39]}  Bf6 {[%clk 0:00:02]} 32. Kf1 {[%clk 0:01:39]}  Kg7 {[%clk 0:00:01]} 33. Ke2 {[%clk 0:01:40]}  h5 {[%clk 0:00:01]} 34. Kf3 {[%clk 0:01:39]}  g5 {[%clk 0:00:01]} 35. h3 {[%clk 0:01:39]}  Kg6 {[%clk 0:00:02]} 36. g4 {[%clk 0:01:40]}  hxg4+ {[%clk 0:00:02]} 37. hxg4 {[%clk 0:01:40]}  Rd6 {[%clk 0:00:02]} 38. Ke4 {[%clk 0:01:40]}  Rd7 {[%clk 0:00:01]} 39. Ra3 {[%clk 0:01:40]} 1-0


[Site "https://www.chess.com"]

[Event "Titled Tuesday Blitz August 3 2021"]
[White "Rodrigue-Lemieux, Shawn"]
[Black "Dobre, Claudiu-Cristian"]
[WhiteFideId "2620049"]
[BlackFideId "1211854"]
[WhiteElo "1763"]
[BlackElo "2259"]
[Result "1/2-1/2"]
[Round "01"]
[TimeControl "180+1"]
[Date "2021.08.03"]
[WhiteClock "0:01:22"]
[BlackClock "0:01:10"]

1. c4 {[%clk 0:02:59]}  Nf6 {[%clk 0:02:58]} 2. g3 {[%clk 0:02:59]}  c6 {[%clk 0:02:58]} 3. Bg2 {[%clk 0:02:59]}  d5 {[%clk 0:02:58]} 4. Nf3 {[%clk 0:02:59]}  Bf5 {[%clk 0:02:58]} 5. cxd5 {[%clk 0:02:57]}  Bxb1 {[%clk 0:02:52]} 6. Rxb1 {[%clk 0:02:55]}  cxd5 {[%clk 0:02:53]} 7. O-O {[%clk 0:02:56]}  Nc6 {[%clk 0:02:53]} 8. d3 {[%clk 0:02:56]}  e6 {[%clk 0:02:53]} 9. Qa4 {[%clk 0:02:56]}  Qa5 {[%clk 0:02:48]} 10. Qxa5 {[%clk 0:02:55]}  Nxa5 {[%clk 0:02:48]} 11. Bd2 {[%clk 0:02:54]}  Nc6 {[%clk 0:02:48]} 12. Rfc1 {[%clk 0:02:55]}  Bd6 {[%clk 0:02:46]} 13. b4 {[%clk 0:02:55]}  Kd7 {[%clk 0:02:42]} 14. b5 {[%clk 0:02:44]}  Ne7 {[%clk 0:02:42]} 15. Nd4 {[%clk 0:02:42]}  Rhc8 {[%clk 0:02:37]} 16. e4 {[%clk 0:02:42]}  dxe4 {[%clk 0:02:36]} 17. dxe4 {[%clk 0:02:43]}  e5 {[%clk 0:02:36]} 18. Nf5 {[%clk 0:02:40]}  Nxf5 {[%clk 0:02:33]} 19. exf5 {[%clk 0:02:41]}  e4 {[%clk 0:02:32]} 20. Bc3 {[%clk 0:02:33]}  Ke7 {[%clk 0:02:22]} 21. Bxf6+ {[%clk 0:02:29]}  Kxf6 {[%clk 0:02:04]} 22. Bxe4 {[%clk 0:02:30]}  Ba3 {[%clk 0:01:53]} 23. Rxc8 {[%clk 0:02:25]}  Rxc8 {[%clk 0:01:52]} 24. Bxb7 {[%clk 0:02:24]}  Rc1+ {[%clk 0:01:52]} 25. Rxc1 {[%clk 0:02:24]}  Bxc1 {[%clk 0:01:52]} 26. Be4 {[%clk 0:02:24]}  h6 {[%clk 0:01:45]} 27. Kg2 {[%clk 0:02:22]}  Ke5 {[%clk 0:01:44]} 28. Bc2 {[%clk 0:02:22]}  Kd4 {[%clk 0:01:41]} 29. f6 {[%clk 0:02:17]}  gxf6 {[%clk 0:01:40]} 30. Bb3 {[%clk 0:02:17]}  Kc5 {[%clk 0:01:39]} 31. a4 {[%clk 0:02:16]}  Kb4 {[%clk 0:01:39]} 32. Bd1 {[%clk 0:02:16]}  Bb2 {[%clk 0:01:35]} 33. Kf3 {[%clk 0:02:13]}  Bd4 {[%clk 0:01:35]} 34. h4 {[%clk 0:02:10]}  Bb6 {[%clk 0:01:34]} 35. h5 {[%clk 0:02:04]}  Kc3 {[%clk 0:01:34]} 36. Ke2 {[%clk 0:02:02]}  Kb4 {[%clk 0:01:17]} 37. f3 {[%clk 0:02:01]}  Bc7 {[%clk 0:01:14]} 38. g4 {[%clk 0:01:59]}  Kc3 {[%clk 0:01:12]} 39. Ke3 {[%clk 0:01:58]}  f5 {[%clk 0:01:11]} 40. gxf5 {[%clk 0:01:39]}  f6 {[%clk 0:01:09]} 41. Ke4 {[%clk 0:01:36]}  Kc4 {[%clk 0:01:10]} 42. Be2+ {[%clk 0:01:32]}  Kc5 {[%clk 0:01:10]} 43. Kd3 {[%clk 0:01:27]}  Ba5 {[%clk 0:01:10]} 44. Bd1 {[%clk 0:01:25]}  Bb6 {[%clk 0:01:09]} 45. Kc3 {[%clk 0:01:25]}  Ba5+ {[%clk 0:01:10]} 46. Kd3 {[%clk 0:01:21]}  Bb6 {[%clk 0:01:10]} 47. Ke4 {[%clk 0:01:22]}  Ba5 {[%clk 0:01:10]} 1/2-1/2


[Site "https://www.chess.com"]

[Event "Titled Tuesday Blitz August 3 2021"]
[White "Rottenwohrer Suarez, Juan"]
[Black "Xiong, Jeffery"]
[WhiteFideId "32068182"]
[BlackFideId "2047640"]
[WhiteElo "2158"]
[BlackElo "2724"]
[Result "1-0"]
[Round "01"]
[TimeControl "180+1"]
[Date "2021.08.03"]
[WhiteClock "0:01:57"]
[BlackClock "0:00:46"]

1. d4 {[%clk 0:03:00]}  d5 {[%clk 0:02:59]} 2. c4 {[%clk 0:03:01]}  c6 {[%clk 0:02:59]} 3. Nf3 {[%clk 0:03:00]}  Nf6 {[%clk 0:02:59]} 4. Nc3 {[%clk 0:03:00]}  dxc4 {[%clk 0:02:59]} 5. a4 {[%clk 0:03:00]}  Bf5 {[%clk 0:02:58]} 6. Ne5 {[%clk 0:03:00]}  Nbd7 {[%clk 0:02:58]} 7. Nxc4 {[%clk 0:03:00]}  Qc7 {[%clk 0:02:58]} 8. g3 {[%clk 0:03:00]}  e5 {[%clk 0:02:58]} 9. dxe5 {[%clk 0:02:59]}  Nxe5 {[%clk 0:02:59]} 10. Bf4 {[%clk 0:02:59]}  Nfd7 {[%clk 0:03:00]} 11. Bg2 {[%clk 0:02:59]}  g5 {[%clk 0:02:57]} 12. Bxe5 {[%clk 0:02:59]}  Nxe5 {[%clk 0:02:57]} 13. Qd4 {[%clk 0:02:59]}  f6 {[%clk 0:02:55]} 14. h4 {[%clk 0:02:57]}  Rd8 {[%clk 0:02:43]} 15. Qe3 {[%clk 0:02:56]}  Be7 {[%clk 0:02:43]} 16. Nxe5 {[%clk 0:02:53]}  Qxe5 {[%clk 0:02:05]} 17. Qxe5 {[%clk 0:02:53]}  fxe5 {[%clk 0:02:06]} 18. hxg5 {[%clk 0:02:53]}  Bxg5 {[%clk 0:02:04]} 19. Be4 {[%clk 0:02:54]}  Be6 {[%clk 0:02:00]} 20. Rxh7 {[%clk 0:02:38]}  Bd2+ {[%clk 0:01:59]} 21. Kf1 {[%clk 0:02:37]}  Rxh7 {[%clk 0:02:00]} 22. Bxh7 {[%clk 0:02:37]}  Bh3+ {[%clk 0:01:54]} 23. Kg1 {[%clk 0:02:35]}  Bxc3 {[%clk 0:01:54]} 24. bxc3 {[%clk 0:02:35]}  Rd2 {[%clk 0:01:55]} 25. Bd3 {[%clk 0:02:30]}  Kd7 {[%clk 0:01:34]} 26. f3 {[%clk 0:02:28]}  e4 {[%clk 0:01:34]} 27. fxe4 {[%clk 0:02:24]}  Rb2 {[%clk 0:01:31]} 28. Rb1 {[%clk 0:02:17]}  Rxb1+ {[%clk 0:01:31]} 29. Bxb1 {[%clk 0:02:18]}  a5 {[%clk 0:01:30]} 30. Kf2 {[%clk 0:02:17]}  b5 {[%clk 0:01:29]} 31. Bc2 {[%clk 0:02:12]}  Kd6 {[%clk 0:01:26]} 32. Kf3 {[%clk 0:02:11]}  Be6 {[%clk 0:01:21]} 33. g4 {[%clk 0:02:11]}  Ke5 {[%clk 0:01:20]} 34. g5 {[%clk 0:02:09]}  b4 {[%clk 0:01:20]} 35. cxb4 {[%clk 0:02:07]}  axb4 {[%clk 0:01:20]} 36. a5 {[%clk 0:02:05]}  b3 {[%clk 0:01:05]} 37. Bb1 {[%clk 0:02:03]}  Kd4 {[%clk 0:00:46]} 38. a6 {[%clk 0:01:57]} 1-0


[Site "https://www.chess.com"]

[Event "Titled Tuesday Blitz August 3 2021"]
[White "Samadov, Read"]
[Black "Buscar, Michael"]
[WhiteFideId "13417444"]
[BlackFideId "2603616"]
[WhiteElo "2084"]
[BlackElo "2010"]
[Result "1-0"]
[Round "01"]
[TimeControl "180+1"]
[Date "2021.08.03"]
[WhiteClock "0:02:22"]
[BlackClock "0:00:25"]

1. d4 {[%clk 0:03:00]}  Nf6 {[%clk 0:02:57]} 2. c4 {[%clk 0:03:00]}  e6 {[%clk 0:02:55]} 3. Nf3 {[%clk 0:03:00]}  d5 {[%clk 0:02:52]} 4. Nc3 {[%clk 0:02:59]}  c5 {[%clk 0:02:50]} 5. cxd5 {[%clk 0:02:58]}  exd5 {[%clk 0:02:47]} 6. g3 {[%clk 0:02:57]}  Nc6 {[%clk 0:02:35]} 7. Bg2 {[%clk 0:02:57]}  Be7 {[%clk 0:01:20]} 8. O-O {[%clk 0:02:57]}  O-O {[%clk 0:01:05]} 9. Bg5 {[%clk 0:02:53]}  c4 {[%clk 0:00:44]} 10. Ne5 {[%clk 0:02:52]}  Be6 {[%clk 0:00:27]} 11. b3 {[%clk 0:02:23]}  Qa5 {[%clk 0:00:25]} 12. Rc1 {[%clk 0:02:22]} 1-0


[Site "https://www.chess.com"]

[Event "Titled Tuesday Blitz August 3 2021"]
[White "Savchenko, Boris"]
[Black "Silva, Miguel Antonio Neto"]
[WhiteFideId "4147332"]
[BlackFideId "1911929"]
[WhiteElo "2542"]
[BlackElo "2283"]
[Result "1-0"]
[Round "01"]
[TimeControl "180+1"]
[Date "2021.08.03"]
[WhiteClock "0:02:10"]
[BlackClock "0:01:31"]

1. d4 {[%clk 0:03:00]}  Nf6 {[%clk 0:02:58]} 2. Bf4 {[%clk 0:03:01]}  d5 {[%clk 0:02:55]} 3. e3 {[%clk 0:03:01]}  c5 {[%clk 0:02:54]} 4. c3 {[%clk 0:03:00]}  Nc6 {[%clk 0:02:54]} 5. Nf3 {[%clk 0:03:00]}  Qb6 {[%clk 0:02:53]} 6. Na3 {[%clk 0:02:56]}  cxd4 {[%clk 0:02:44]} 7. exd4 {[%clk 0:02:54]}  a6 {[%clk 0:02:44]} 8. Rb1 {[%clk 0:02:51]}  Bf5 {[%clk 0:02:43]} 9. Bd3 {[%clk 0:02:50]}  Bxd3 {[%clk 0:02:42]} 10. Qxd3 {[%clk 0:02:51]}  e6 {[%clk 0:02:42]} 11. Nc2 {[%clk 0:02:51]}  Be7 {[%clk 0:02:41]} 12. O-O {[%clk 0:02:50]}  Nh5 {[%clk 0:02:38]} 13. Be5 {[%clk 0:02:48]}  O-O {[%clk 0:02:34]} 14. h4 {[%clk 0:02:48]}  Nxe5 {[%clk 0:02:31]} 15. dxe5 {[%clk 0:02:49]}  Qb5 {[%clk 0:02:20]} 16. Qxb5 {[%clk 0:02:48]}  axb5 {[%clk 0:02:20]} 17. a3 {[%clk 0:02:49]}  Ra4 {[%clk 0:02:19]} 18. Ncd4 {[%clk 0:02:48]}  Nf4 {[%clk 0:02:14]} 19. g3 {[%clk 0:02:41]}  Nd3 {[%clk 0:02:10]} 20. Rfd1 {[%clk 0:02:37]}  Nc5 {[%clk 0:02:01]} 21. Nxb5 {[%clk 0:02:37]}  Ne4 {[%clk 0:01:59]} 22. Nd2 {[%clk 0:02:16]}  Nc5 {[%clk 0:01:48]} 23. Kg2 {[%clk 0:02:13]}  h6 {[%clk 0:01:41]} 24. b4 {[%clk 0:02:12]}  Nd7 {[%clk 0:01:35]} 25. f4 {[%clk 0:02:11]}  Rc8 {[%clk 0:01:33]} 26. c4 {[%clk 0:02:09]}  dxc4 {[%clk 0:01:31]} 27. Nxc4 {[%clk 0:02:10]} 1-0


[Site "https://www.chess.com"]

[Event "Titled Tuesday Blitz August 3 2021"]
[White "Seletsky, Grigory"]
[Black "Dvirnyy, Danyyil"]
[WhiteFideId "14112191"]
[BlackFideId "817570"]
[WhiteElo "2492"]
[BlackElo "2531"]
[Result "1/2-1/2"]
[Round "01"]
[TimeControl "180+1"]
[Date "2021.08.03"]
[WhiteClock "0:00:04"]
[BlackClock "0:00:15"]

1. e4 {[%clk 0:02:44]}  e5 {[%clk 0:02:59]} 2. Nf3 {[%clk 0:02:42]}  Nc6 {[%clk 0:02:59]} 3. Bb5 {[%clk 0:02:39]}  a6 {[%clk 0:03:00]} 4. Ba4 {[%clk 0:02:37]}  Nf6 {[%clk 0:03:00]} 5. d3 {[%clk 0:02:37]}  b5 {[%clk 0:02:57]} 6. Bb3 {[%clk 0:02:35]}  Be7 {[%clk 0:02:58]} 7. O-O {[%clk 0:02:34]}  d6 {[%clk 0:02:58]} 8. a3 {[%clk 0:02:33]}  O-O {[%clk 0:02:53]} 9. h3 {[%clk 0:02:31]}  Be6 {[%clk 0:02:50]} 10. c3 {[%clk 0:02:24]}  d5 {[%clk 0:02:48]} 11. Nbd2 {[%clk 0:02:22]}  Bc5 {[%clk 0:02:45]} 12. Re1 {[%clk 0:02:19]}  dxe4 {[%clk 0:02:38]} 13. dxe4 {[%clk 0:02:15]}  Qe7 {[%clk 0:02:32]} 14. Qc2 {[%clk 0:02:08]}  Nh5 {[%clk 0:02:29]} 15. Nf1 {[%clk 0:02:06]}  Rad8 {[%clk 0:02:10]} 16. Bg5 {[%clk 0:02:01]}  f6 {[%clk 0:02:08]} 17. Bc1 {[%clk 0:01:59]}  Nf4 {[%clk 0:02:02]} 18. Bxf4 {[%clk 0:01:56]}  exf4 {[%clk 0:02:03]} 19. Rad1 {[%clk 0:01:53]}  Ne5 {[%clk 0:02:02]} 20. Nd4 {[%clk 0:01:50]}  Bc4 {[%clk 0:01:53]} 21. Nh2 {[%clk 0:01:43]}  Qf7 {[%clk 0:01:36]} 22. Bxc4 {[%clk 0:01:41]}  bxc4 {[%clk 0:01:34]} 23. Nhf3 {[%clk 0:01:36]}  Nd3 {[%clk 0:01:34]} 24. Re2 {[%clk 0:01:35]}  Rfe8 {[%clk 0:01:32]} 25. b3 {[%clk 0:01:31]}  Ne5 {[%clk 0:01:25]} 26. b4 {[%clk 0:01:23]}  Bb6 {[%clk 0:01:25]} 27. Nxe5 {[%clk 0:01:21]}  fxe5 {[%clk 0:01:22]} 28. Nf3 {[%clk 0:01:17]}  Rd6 {[%clk 0:01:10]} 29. Rxd6 {[%clk 0:01:16]}  cxd6 {[%clk 0:01:10]} 30. Rd2 {[%clk 0:01:14]}  Qc7 {[%clk 0:01:03]} 31. Rd5 {[%clk 0:01:14]}  h6 {[%clk 0:01:00]} 32. Qa4 {[%clk 0:01:11]}  Ra8 {[%clk 0:00:57]} 33. Kh2 {[%clk 0:01:09]}  Kh7 {[%clk 0:00:55]} 34. Qc2 {[%clk 0:01:05]}  a5 {[%clk 0:00:55]} 35. b5 {[%clk 0:01:04]}  a4 {[%clk 0:00:55]} 36. Qd2 {[%clk 0:01:02]}  Bc5 {[%clk 0:00:54]} 37. Qb2 {[%clk 0:01:01]}  Rb8 {[%clk 0:00:52]} 38. Nh4 {[%clk 0:01:00]}  Qd7 {[%clk 0:00:44]} 39. Nf5 {[%clk 0:00:57]}  g6 {[%clk 0:00:42]} 40. Nxd6 {[%clk 0:00:48]}  Bxd6 {[%clk 0:00:42]} 41. Qd2 {[%clk 0:00:48]}  Rb6 {[%clk 0:00:42]} 42. Rxe5 {[%clk 0:00:43]}  f3 {[%clk 0:00:43]} 43. g3 {[%clk 0:00:41]}  Qf7 {[%clk 0:00:38]} 44. Rd5 {[%clk 0:00:40]}  Qe6 {[%clk 0:00:39]} 45. Qd4 {[%clk 0:00:36]}  Bf8 {[%clk 0:00:32]} 46. Rd7+ {[%clk 0:00:29]}  Kg8 {[%clk 0:00:31]} 47. Ra7 {[%clk 0:00:23]}  Rxb5 {[%clk 0:00:30]} 48. e5 {[%clk 0:00:21]}  Rxe5 {[%clk 0:00:26]} 49. Rxa4 {[%clk 0:00:19]}  Re2 {[%clk 0:00:23]} 50. Rxc4 {[%clk 0:00:17]}  Rxf2+ {[%clk 0:00:10]} 51. Qxf2 {[%clk 0:00:16]}  Qxc4 {[%clk 0:00:10]} 52. Qxf3 {[%clk 0:00:17]}  Qa2+ {[%clk 0:00:08]} 53. Kh1 {[%clk 0:00:16]}  Bxa3 {[%clk 0:00:09]} 54. Qa8+ {[%clk 0:00:14]}  Kf7 {[%clk 0:00:09]} 55. Qa7+ {[%clk 0:00:13]}  Ke6 {[%clk 0:00:09]} 56. Qa6+ {[%clk 0:00:12]}  Ke5 {[%clk 0:00:07]} 57. Qxg6 {[%clk 0:00:10]}  Qd5+ {[%clk 0:00:08]} 58. Kh2 {[%clk 0:00:08]}  Qd2+ {[%clk 0:00:08]} 59. Kh1 {[%clk 0:00:08]}  Qe1+ {[%clk 0:00:08]} 60. Kh2 {[%clk 0:00:07]}  Qf2+ {[%clk 0:00:08]} 61. Kh1 {[%clk 0:00:06]}  Qf1+ {[%clk 0:00:09]} 62. Kh2 {[%clk 0:00:05]}  Bc5 {[%clk 0:00:09]} 63. Qh5+ {[%clk 0:00:03]}  Kd6 {[%clk 0:00:07]} 64. Qxh6+ {[%clk 0:00:01]}  Kc7 {[%clk 0:00:07]} 65. Qf4+ {[%clk 0:00:04]}  Qxf4 {[%clk 0:00:06]} 66. gxf4 {[%clk 0:00:04]}  Kd6 {[%clk 0:00:07]} 67. Kg3 {[%clk 0:00:01]}  Ke6 {[%clk 0:00:08]} 68. Kg4 {[%clk 0:00:01]}  Kf7 {[%clk 0:00:09]} 69. h4 {[%clk 0:00:02]}  Ba3 {[%clk 0:00:09]} 70. h5 {[%clk 0:00:02]}  Bb2 {[%clk 0:00:10]} 71. h6 {[%clk 0:00:03]}  Bxc3 {[%clk 0:00:11]} 72. h7 {[%clk 0:00:04]}  Bh8 {[%clk 0:00:12]} 73. f5 {[%clk 0:00:04]}  Kg7 {[%clk 0:00:12]} 74. f6+ {[%clk 0:00:04]}  Kxh7 {[%clk 0:00:13]} 75. f7 {[%clk 0:00:04]}  Kg7 {[%clk 0:00:14]} 76. f8=Q+ {[%clk 0:00:04]}  Kxf8 {[%clk 0:00:15]} 1/2-1/2


[Site "https://www.chess.com"]